Cogmind - Beta 13 @@@ ROGUE MODE // 2024.04.22 @ 01:55:09 Player: Person Guy Result: Self-destructed Performance ------------- Evolutions (8) 4000 Regions Visited (15) 3000 Robots Destroyed (123) 615 Value Destroyed (4083) 4083 Prototype IDs (21) 420 Alien Tech Used (0) 0 Bonus (2053) 2053 TOTAL SCORE: 14171 Bonus ------- Triggered Max Security 1000 High Alert Combat Kills 115 Follower Combat Kills 138 Entered DSFs 500 Aligned with FarCom 300 Cogmind --------- Core Integrity 1013/1450 Matter 269/300 Energy 100/100 System Corruption 7% Temperature Cool (0) Movement Core (50) Location -2/Testing Parts ------- > --- POWER (2) -------- (None) > --- PROPULSION (4) --- (None) > --- UTILITY (14) ----- Improved Melee Analysis Suite Advanced Transmission Jammer Hacking Suite > --- WEAPON (3) ------- (None) > --- INVENTORY (5) ---- Light Quantum Reactor Peak State ------------ > --- POWER ------------ Micro Nuclear Core > --- PROPULSION ------- Gravmag Array Improved Gyrokinetic Inverter > --- UTILITY ---------- Advanced Terrain Scanner Advanced Terrain Scan Processor Hacking Suite Hacking Suite Hacking Suite Hacking Suite System Shield Trap Reconfigurator > --- WEAPON ----------- Lance Force Lance > --- INVENTORY -------- Advanced Terrain Scanner Field Recycling Unit Shock Bomb Launcher [Rating: 68] Favorites ----------- Power Heavy Ion Engine Engine Heavy Ion Engine Power Core Micro Nuclear Core Reactor Light Particle Reactor Propulsion Advanced Treads Treads Advanced Treads Leg Aluminum Leg Hover Unit Improved Antigrav System Flight Unit Xenon Bombardment Thruster Utility Hacking Suite Device Improved Heat Sink Storage Large Storage Unit Processor Improved Melee Analysis Suite Hackware Hacking Suite Protection Hardened Light Armor Plating Weapon Autogun Energy Gun Medium Laser Energy Cannon Heavy Particle Cannon Ballistic Gun Autogun Ballistic Cannon Improved Light Cannon Launcher Shock Bomb Launcher Piercing Weapon Lance Build | -11 -10 -10 -9 -9 -9 -8 -8 -7 -6 -5 -4 -3 -3 -2 -2 ------- Run | Yrd Mat Min Mat Min Exi Min Mat Fac Fac Fac Fac Res DSF Res Tes Slots Evolved 16 | . . . 2 . . . 2 2 2 2 2 2 . 2 . Power 1 | . . . . . . . . . 1 . . . . . . Propulsion 2 | . . . 1 . . . . . 1 . . . . . . Utility 12 | . . . 1 . . . 1 2 . 2 2 2 . 2 . Weapon 1 | . . . . . . . 1 . . . . . . . . Parts Attached 117 | . 13 . 14 . 5 . 29 11 14 . 20 . 1 9 1 Power 11 | . 1 . 1 . . . 1 2 2 . 2 . . 2 . Engine 4 | . 1 . 1 . . . 1 . . . 1 . . . . Core 5 | . . . . . . . . 2 2 . 1 . . . . Reactor 2 | . . . . . . . . . . . . . . 2 . Propulsion 30 | . 3 . 4 . . . 9 1 6 . 3 . . 3 1 Treads 13 | . 3 . 4 . . . 6 . . . . . . . . Leg . | . . . . . . . . . . . . . . . . Wheel . | . . . . . . . . . . . . . . . . Hover 5 | . . . . . . . . . . . 2 . . 2 1 Flight 12 | . . . . . . . 3 1 6 . 1 . . 1 . Utility 36 | . 3 . 5 . 2 . 6 4 4 . 8 . . 4 . Device 18 | . 2 . 2 . 2 . 3 1 4 . 2 . . 2 . Storage 2 | . 1 . 1 . . . . . . . . . . . . Processor 4 | . . . . . . . . . . . 3 . . 1 . Hackware 8 | . . . 1 . . . . 3 . . 3 . . 1 . Protection 4 | . . . 1 . . . 3 . . . . . . . . Artifact . | . . . . . . . . . . . . . . . . Weapon 40 | . 6 . 4 . 3 . 13 4 2 . 7 . 1 . . Energy Gun 5 | . 2 . . . . . 3 . . . . . . . . Energy Cannon 5 | . . . 1 . 1 . 3 . . . . . . . . Ballistic Gun 22 | . 4 . 3 . 2 . 6 4 2 . 1 . . . . Ballistic Cannon 1 | . . . . . . . 1 . . . . . . . . Launcher 1 | . . . . . . . . . . . . . 1 . . Special Weapon . | . . . . . . . . . . . . . . . . Impact Weapon . | . . . . . . . . . . . . . . . . Slashing Weapon . | . . . . . . . . . . . . . . . . Piercing Weapon 6 | . . . . . . . . . . . 6 . . . . Special Melee Weapon . | . . . . . . . . . . . . . . . . Unidentified Prototypes 10 | . 1 . 1 . 2 . 2 1 2 . . . . 1 . Parts Lost 34 | . 3 . . . . . 2 1 13 . 11 . 2 . 2 Power 4 | . 1 . . . . . . 1 . . 2 . . . . Propulsion 14 | . . . . . . . 2 . 6 . 3 . 1 . 2 Utility 9 | . . . . . . . . . 3 . 6 . . . . Weapon 7 | . 2 . . . . . . . 4 . . . 1 . . Highest Loss Streak 4 | . 3 . . . . . 1 1 3 . 4 . 2 . 2 To Critical Strikes 1 | . . . . . . . . . 1 . . . . . . Average Slot Usage (%) 83 | . 98 100 98 100 98 100 98 93 79 29 48 38 27 26 27 Engine 7 | . 13 14 11 11 11 11 9 4 . . 1 . . . . Core 1 | . . . . . . . . 2 10 . 1 . . . . Treads 17 | . 18 28 32 33 33 33 24 . . . . . . . . Leg 1 | . 9 . . . . . . . . . . . . . . Hover 1 | . . . . . . . . . . . 5 . . 8 6 Flight 3 | . . . . . . . 2 23 18 5 2 4 2 . . Device 11 | . 13 14 11 11 11 11 14 19 12 5 7 . . 6 7 Storage 6 | . 14 14 11 11 11 11 8 . . . . . . . . Hackware 9 | . . . 1 11 11 11 9 19 22 17 18 14 11 3 4 Protection 1 | . . . 8 . . . 2 . . . . . . . . Energy Gun 3 | . 22 . . . . . 2 . . . . . . . . Energy Cannon 1 | . . . . . . . 6 6 . . . . . . . Ballistic Gun 13 | . 5 28 21 22 19 22 17 15 14 . . . . . . Naked Turns 12 | . . . . . . . . . . . . . 12 . . Heaviest Build 51 | 14 30 30 43 35 51 35 49 24 25 1 17 9 9 16 16 Greatest Support 69 | 20 46 46 69 66 66 66 66 24 28 6 32 13 13 24 24 Greatest Overweight (x) 4 | . . . . . . . 1 4 1 . 2 . . . 4 Average Overweight (x) . | . . . . . . . . . . . . . . . . Largest Inventory Capacity 15 | 8 15 15 15 15 15 15 15 5 5 5 5 5 5 5 5 Average Capacity 10 | 8 9 15 15 15 15 15 14 5 5 5 5 5 5 5 5 Most Carried 15 | 6 8 8 13 13 15 14 15 5 5 4 5 3 4 3 2 Average Carried 7 | 6 6 7 8 12 13 14 12 4 4 4 3 3 3 1 1 Final Capacity 15 | 8 15 15 15 15 15 15 5 5 5 5 5 5 5 5 5 Final Carried 14 | 6 7 8 11 13 14 14 5 5 4 4 3 3 4 1 1 Class Distribution -------------------- 43% | Mutant 16% | Scavenger-Skirmisher 7% | Hacker-Skirmisher 7% | Scout 7% | Hacker-Mutant 6% | Hacker-Scout 4% | Skirmisher 4% | Hacker-Sprinter Dominant Class ---------------- Mutant | -10/Materials Mutant | -10/Mines Mutant | -9/Materials Mutant | -9/Mines Mutant | -9/Exiles Mutant | -8/Mines Scavenger-Skirmisher | -8/Materials Hacker-Skirmisher | -7/Factory Hacker-Sprinter | -6/Factory Hacker-Mutant | -5/Factory Hacker-Scout | -4/Factory Hacker-Scout | -3/Research Hacker-Gladiator | -3/DSF Scout | -2/Research Scout | -2/Testing Resources | -11 -10 -10 -9 -9 -9 -8 -8 -7 -6 -5 -4 -3 -3 -2 -2 ----------- Run | Yrd Mat Min Mat Min Exi Min Mat Fac Fac Fac Fac Res DSF Res Tes Matter Collected 3101 | 200 130 151 639 88 . . 887 273 458 . 185 . . 90 . Remotely . | . . . . . . . . . . . . . . . . Salvage Created 4810 | . 454 231 932 58 . . 1341 402 836 . 390 . 166 . . Parts 280 | . 26 14 60 7 . . 81 24 29 . 30 . 9 . . Haulers Intercepted 4 | . . . . . . . 2 1 1 . . . . . . Recyclers Shooed 6 | . . 1 1 . . . . 2 2 . . . . . . Parts Field Recycled . | . . . . . . . . . . . . . . . . Retrieved Matter . | . . . . . . . . . . . . . . . . Parts Self-Destructed . | . . . . . . . . . . . . . . . . Prevented . | . . . . . . . . . . . . . . . . Kills | -11 -10 -10 -9 -9 -9 -8 -8 -7 -6 -5 -4 -3 -3 -2 -2 ------- Run | Yrd Mat Min Mat Min Exi Min Mat Fac Fac Fac Fac Res DSF Res Tes Combat Hostiles Destroyed 93 | . 12 7 20 5 . . 29 6 8 . 4 . 2 . . Melee 6 | . . . . . . . . . . . 4 . 2 . . Guns 66 | . 12 7 20 5 . . 15 4 3 . . . . . . Cannons 16 | . . . . . . . 14 2 . . . . . . . AOE 5 | . . . . . . . . . 5 . . . . . . Classes Destroyed 13 | . 3 . 2 1 . . 3 2 . . 1 . 1 . . Worker 6 | . . . 1 . . . 1 2 2 . . . . . . Builder 4 | . . . . . . . 2 1 1 . . . . . . Tunneler 1 | . . . . . . . . . . . 1 . . . . Hauler 4 | . . . . . . . 2 1 1 . . . . . . Recycler 8 | . . . . . . . . 3 4 . 1 . . . . Operator 7 | . 2 . 1 . . . 2 . . . 2 . . . . Swarmer 23 | . 3 2 . 4 . . 7 3 4 . . . . . . Grunt 46 | . 9 5 14 . . . 14 2 2 . . . . . . Sentry 13 | . . . 6 . . . 7 . . . . . . . . Demolisher 1 | . . . . 1 . . . . . . . . . . . Specialist 2 | . . . . . . . . . . . . . 2 . . Hunter 1 | . . . . . . . 1 . . . . . . . . Programmer 7 | . . . . . . . . 1 2 . 4 . . . . Best Kill Streak 11 | . 3 4 6 4 . . 7 5 11 . 2 . 1 . . Combat Bots Only 7 | . 3 4 6 4 . . 7 3 5 . 2 . 1 . . Max Kills in Single Turn 3 | . 1 1 2 1 . . 2 3 3 . 1 . 1 . . Gunslinging 1 | . . . 1 . . . . . . . . . . . . Exploded 2 | . . . . . . . . . 2 . . . . . . Melee 1 | . . . . . . . . . . . 1 . 1 . . Uniques/NPCs Destroyed . | . . . . . . . . . . . . . . . . Combat | -11 -10 -10 -9 -9 -9 -8 -8 -7 -6 -5 -4 -3 -3 -2 -2 -------- Run | Yrd Mat Min Mat Min Exi Min Mat Fac Fac Fac Fac Res DSF Res Tes Hostile Shots Fired 705 | . 71 12 74 17 . . 132 20 121 . 181 . 34 . 43 Missed 251 | . 15 3 20 2 . . 37 4 53 . 89 . 9 . 19 Damage Taken 7645 | . 639 122 700 178 . . 1313 393 1398 . 1558 . 680 . 664 Core 2781 | . 106 16 65 77 . . 143 59 453 . 926 . 499 . 437 Absorbed by Shields 77 | . . . . . . . . . . . . . 77 . . Core Remaining (%) 67 | 100 . 51 . . . 64 74 91 46 100 19 . 61 . . Volleys Fired 280 | . 55 17 64 11 . . 74 22 30 . 6 . 1 . . Largest 3 | . 2 2 2 2 . . 3 3 3 . 1 . 1 . . Hottest 144 | . 100 46 46 46 . . 144 80 81 . 28 . 36 . . Shots Fired 673 | . 109 33 128 22 . . 221 66 87 . 6 . 1 . . Gun 584 | . 109 33 128 22 . . 155 44 87 . 6 . . . . Cannon 88 | . . . . . . . 66 22 . . . . . . . Launcher 1 | . . . . . . . . . . . . . 1 . . Special . | . . . . . . . . . . . . . . . . Kinetic 475 | . 8 33 128 22 . . 147 44 87 . 6 . . . . Thermal 197 | . 101 . . . . . 74 22 . . . . . . . Explosive . | . . . . . . . . . . . . . . . . Electromagnetic 1 | . . . . . . . . . . . . . 1 . . Robot Hit Streak 21 | . 13 5 21 5 . . 19 6 8 . 3 . 2 . . Robot Miss Streak 9 | . 6 4 3 3 . . 6 5 9 . 6 . . . . Penetration Max 1 | . . . . . . . . . 1 . . . . . . Secondary Targets 6 | . . . 3 2 . . 1 . . . . . . . . Max Gunslinging Chain 1 | . . . 1 1 . . 1 . . . . . . . . Shots Hit Robots 446 | . 63 23 97 12 . . 128 38 61 . 18 . 6 . . Core Hits 236 | . 26 11 38 7 . . 71 18 46 . 14 . 5 . . Critical Kills . | . . . . . . . . . . . . . . . . Critical Parts Destroyed 4 | . . 2 . . . . 2 . . . . . . . . Critical Strikes 15 | . 5 2 . . . . 4 . . . 3 . 1 . . Burn 7 | . 5 . . . . . 2 . . . . . . . . Destroy 4 | . . 2 . . . . 2 . . . . . . . . Impale 4 | . . . . . . . . . . . 3 . 1 . . Melee Attacks 52 | . . . . . . . . . . . 47 . 5 . . Impact . | . . . . . . . . . . . . . . . . Slashing . | . . . . . . . . . . . . . . . . Piercing 52 | . . . . . . . . . . . 47 . 5 . . Sneak Attacks 5 | . . . . . . . . . . . 3 . 2 . . Combat Hostiles 2 | . . . . . . . . . . . . . 2 . . Follow-up Attacks 4 | . . . . . . . . . . . 4 . . . . Damage Inflicted 10309 | . 789 352 1532 202 . . 2704 1212 2323 . 833 . 359 . 3 Guns 6437 | . 789 348 1456 202 . . 1690 602 1271 . 79 . . . . Cannons 1248 | . . . . . . . 976 272 . . . . . . . Explosions 1463 | . . . . . . . . 338 1050 . . . 75 . . Melee 1034 | . . . . . . . . . . . 752 . 282 . . Ramming 127 | . . 4 76 . . . 38 . 2 . 2 . 2 . 3 Kinetic 5526 | . 28 348 1456 202 . . 1540 602 1271 . 79 . . . . Thermal 2497 | . 761 . . . . . 1126 610 . . . . . . . Explosive 1014 | . . . . . . . . . 1014 . . . . . . Electromagnetic 111 | . . . . . . . . . 36 . . . 75 . . Impact . | . . . . . . . . . . . . . . . . Slashing . | . . . . . . . . . . . . . . . . Piercing 1034 | . . . . . . . . . . . 752 . 282 . . Highest Corruption 7 | . 2 2 . . . . . . . . 2 . 1 3 7 Average Corruption 2 | . 1 2 . . . . . . . . 1 . 1 3 3 Corruption Purged . | . . . . . . . . . . . . . . . . Corruption Blocked . | . . . . . . . . . . . . . . . . Effects 19 | . 4 6 . . . . . . . . 3 . 1 2 3 Message Errors 3 | . 1 1 . . . . . . . . 1 . . . . Matter Fused 6 | . 1 1 . . . . . . . . 1 . 1 1 1 Heat Flow Errors 4 | . . . . . . . . . . . 1 . . 1 2 Energy Discharges 1 | . 1 . . . . . . . . . . . . . . Parts Rejected 1 | . 1 . . . . . . . . . . . . . . Data Loss (minor) 1 | . . 1 . . . . . . . . . . . . . Alerts 2 | . . 2 . . . . . . . . . . . . . Weapon Failures 1 | . . 1 . . . . . . . . . . . . . Overload Shots . | . . . . . . . . . . . . . . . . Overflow Damage 397 | . . . . . . . 21 60 81 . 96 . 139 . . Projectiles 22 | . . . . . . . 21 1 . . . . . . . Explosions 140 | . . . . . . . . 59 81 . . . . . . Melee 235 | . . . . . . . . . . . 96 . 139 . . Knockbacks 1 | . . . 1 . . . . . . . . . . . . Impact 1 | . . . 1 . . . . . . . . . . . . Kinetic . | . . . . . . . . . . . . . . . . Secondary . | . . . . . . . . . . . . . . . . Self-Inflicted Damage 235 | . . . . . . . . 138 74 . 1 . 21 . 1 Shots 4 | . . . . . . . . 2 1 . . . 1 . . Rammed 18 | . . 1 9 . . . 4 . 1 . 1 . 1 . 1 Targets Rammed 19 | . . 1 9 . . . 5 . 1 . 1 . 1 . 1 Kicked . | . . . . . . . . . . . . . . . . Crushed 1 | . . . . . . . 1 . . . . . . . . Highest Temperature 310 | . 310 16 4 . . . 150 45 258 . 216 . . 171 263 Average Temperature 62 | . 69 10 1 . . . 44 18 81 . 123 . . 171 126 Received Heat Transfer 1839 | . 330 81 330 . . . 540 72 399 . 60 . . . 27 Effects 1 | . 1 . . . . . . . . . . . . . . Interference 1 | . 1 . . . . . . . . . . . . . . Siege Activations . | . . . . . . . . . . . . . . . . Robots Corrupted . | . . . . . . . . . . . . . . . . Combat Hostiles . | . . . . . . . . . . . . . . . . Parts Fried . | . . . . . . . . . . . . . . . . Impact Corruptions . | . . . . . . . . . . . . . . . . Robots Melted . | . . . . . . . . . . . . . . . . Combat Hostiles . | . . . . . . . . . . . . . . . . Parts Melted 10 | . 6 2 . . . . . 1 . . . . 1 . . Heat Transferred 5238 | . 2627 . . . . . 2041 570 . . . . . . . Parts Sabotaged 2 | . . . . . . . . . . . . . . . 2 Parts Stolen . | . . . . . . . . . . . . . . . . Parts Stripped . | . . . . . . . . . . . . . . . . Power Chain Reactions . | . . . . . . . . . . . . . . . . Alert | -11 -10 -10 -9 -9 -9 -8 -8 -7 -6 -5 -4 -3 -3 -2 -2 ------- Run | Yrd Mat Min Mat Min Exi Min Mat Fac Fac Fac Fac Res DSF Res Tes Peak Influence 1850 | . 195 207 377 253 . . 356 503 917 404 264 138 148 77 1850 Initial 404 | . . 21 80 103 . . . 161 163 404 197 138 103 77 . Average 239 | . 68 152 200 172 . . 211 326 546 404 158 138 130 56 1710 Maximum Alert Level 5 | . . 1 1 1 . . 1 2 3 2 1 . . . 5 Low Security (%) 52 | 100 100 81 41 70 . 100 28 16 15 . 63 100 100 100 . Level 1 36 | . . 18 58 29 . . 71 66 18 . 36 . . . . Level 2 5 | . . . . . . . . 16 33 100 . . . . . Level 3 3 | . . . . . . . . . 32 . . . . . . Level 4 . | . . . . . . . . . . . . . . . . Level 5 . | . . . . . . . . . . . . . . . . High Security . | . . . . . . . . . . . . . . . . Max Security 1 | . . . . . . . . . . . . . . . 99 Squads Dispatched 36 | . 3 . 3 . . . 5 4 8 . 5 . 1 1 6 Investigation 9 | . . . 1 . . . 1 3 2 . 2 . . . . Extermination 4 | . . . . . . . . 1 1 . 1 . . 1 . Reinforcement 16 | . 3 . 2 . . . 4 . 4 . 2 . 1 . . Assault 7 | . . . . . . . . . 1 . . . . . 6 Garrison . | . . . . . . . . . . . . . . . . Intercept . | . . . . . . . . . . . . . . . . Searches Triggered . | . . . . . . . . . . . . . . . . Construction Impeded 2 | . . . . . . . 1 . 1 . . . . . . Haulers Reinforced 1 | . . . . . . . . . 1 . . . . . . Active Scanning Responses . | . . . . . . . . . . . . . . . . Cargo Convoy Interrupts 1 | . . . . . . . . . 1 . . . . . . Stealth | -11 -10 -10 -9 -9 -9 -8 -8 -7 -6 -5 -4 -3 -3 -2 -2 --------- Run | Yrd Mat Min Mat Min Exi Min Mat Fac Fac Fac Fac Res DSF Res Tes Distress Signals 17 | . 1 . 5 . . . 7 . 1 . 1 . . . 2 Communications Jammed 16 | . . . . . . . . . . . . . . . 16 Distress Signals 16 | . . . . . . . . . . . . . . . 16 Times Spotted 242 | . 23 9 32 8 . . 51 10 39 . 32 . 7 2 29 Peak Tracking Total 19 | . 5 3 5 3 . . 7 4 12 . 9 . 6 2 19 Tactical Retreats 28 | . 1 1 . 2 . . 1 . 9 . 8 . 1 . 5 Traps | -11 -10 -10 -9 -9 -9 -8 -8 -7 -6 -5 -4 -3 -3 -2 -2 ------- Run | Yrd Mat Min Mat Min Exi Min Mat Fac Fac Fac Fac Res DSF Res Tes Traps Triggered 11 | . 2 . 1 . . . 2 1 1 . 1 . 1 1 1 Indirectly . | . . . . . . . . . . . . . . . . Trap Hack Attempts . | . . . . . . . . . . . . . . . . Triggered . | . . . . . . . . . . . . . . . . Disarmed . | . . . . . . . . . . . . . . . . Reprogrammed . | . . . . . . . . . . . . . . . . Reused 5 | . . . . . . . . . 2 . 3 . . . . Traps Reconfigurated 26 | . . . . . . . 4 1 17 . 4 . . . . Traps Extracted . | . . . . . . . . . . . . . . . . Installed . | . . . . . . . . . . . . . . . . Triggered 5 | . . . . . . . . . 2 . 3 . . . . Machines | -11 -10 -10 -9 -9 -9 -8 -8 -7 -6 -5 -4 -3 -3 -2 -2 ---------- Run | Yrd Mat Min Mat Min Exi Min Mat Fac Fac Fac Fac Res DSF Res Tes Machines Disabled 29 | . . 2 . . . . 3 4 20 . . . . . . Max in Single Turn 5 | . . 1 . . . . 1 4 5 . . . . . . Garrison Access 2 | . . . . . . . . . 1 . 1 . . . . Machines Repaired . | . . . . . . . . . . . . . . . . Machines Dismantled . | . . . . . . . . . . . . . . . . Machines Sabotaged . | . . . . . . . . . . . . . . . . Overloaded Fab Kills . | . . . . . . . . . . . . . . . . Hacking | -11 -10 -10 -9 -9 -9 -8 -8 -7 -6 -5 -4 -3 -3 -2 -2 --------- Run | Yrd Mat Min Mat Min Exi Min Mat Fac Fac Fac Fac Res DSF Res Tes Machines Accessed 49 | . 3 . 9 . . . 10 5 7 1 12 1 . 1 . Terminals 37 | . 3 . 7 . . . 10 2 4 . 9 1 . 1 . Fabricators 6 | . . . . . . . . 2 3 . 1 . . . . Repair Stations 1 | . . . . . . . . . . 1 . . . . . Recycling Units 2 | . . . . . . . . 1 . . 1 . . . . Scanalyzers 2 | . . . 2 . . . . . . . . . . . . Garrison Access 1 | . . . . . . . . . . . 1 . . . . Total Hacks 123 | . 8 . 26 . . . 24 16 23 1 23 1 . 1 . Successful 72 | . 4 . 16 . . . 9 8 18 . 16 1 . . . Failed 49 | . 3 . 9 . . . 15 8 5 1 7 . . 1 . Catastrophic 8 | . . . . . . . 4 2 1 . . . . 1 . Database Lockouts 2 | . 1 . 1 . . . . . . . . . . . . Manual 78 | . 8 . 27 . 1 . 12 8 14 . 7 . . 1 . Terminals 98 | . 8 . 22 . . . 24 6 18 . 18 1 . 1 . Fabricators 13 | . . . . . . . . 6 5 . 2 . . . . Repair Stations 1 | . . . . . . . . . . 1 . . . . . Recycling Units 5 | . . . . . . . . 4 . . 1 . . . . Scanalyzers 4 | . . . 4 . . . . . . . . . . . . Garrison Access 2 | . . . . . . . . . . . 2 . . . . Terminal Hacks 41 | . 2 . 9 . . . 7 1 11 . 10 1 . . . Record 2 | . . . . . . . . . . . 2 . . . . Robot Schematic 1 | . . . . . . . . . 1 . . . . . . Prototype ID Bank 6 | . 1 . 3 . . . 2 . . . . . . . . Open DSF 2 | . . . . . . . . . . . 1 1 . . . Level Access Points 3 | . . . . . . . . 1 1 . 1 . . . . Branch Access Points 2 | . 1 . . . . . . . 1 . . . . . . Machine Index 1 | . . . . . . . . . 1 . . . . . . Terminal Index 3 | . . . 1 . . . 1 . 1 . . . . . . Alert Level 8 | . . . 3 . . . 1 . 2 . 2 . . . . Unreport Threat 2 | . . . . . . . 1 . . . 1 . . . . Locate Traps 4 | . . . . . . . 1 . 1 . 2 . . . . Patrol Status 1 | . . . . . . . . . 1 . . . . . . Investigation Status 1 | . . . 1 . . . . . . . . . . . . Hauler Manifests 1 | . . . . . . . . . 1 . . . . . . Registered Components 2 | . . . . . . . 1 . 1 . . . . . . Zone Layout 2 | . . . 1 . . . . . . . 1 . . . . Fabricator Hacks 11 | . . . . . . . . 4 5 . 2 . . . . Load Schematic 5 | . . . . . . . . 2 2 . 1 . . . . Build 6 | . . . . . . . . 2 3 . 1 . . . . Repair Station Hacks . | . . . . . . . . . . . . . . . . Recycling Unit Hacks 2 | . . . . . . . . 1 . . 1 . . . . Process 1 | . . . . . . . . . . . 1 . . . . Retrieve Components 1 | . . . . . . . . 1 . . . . . . . Scanalyzer 3 | . . . 3 . . . . . . . . . . . . Insert Component 2 | . . . 2 . . . . . . . . . . . . Analyze 1 | . . . 1 . . . . . . . . . . . . Garrison Access Hacks 1 | . . . . . . . . . . . 1 . . . . Seal Access 1 | . . . . . . . . . . . 1 . . . . Unauthorized Hacks 13 | . 2 . 3 . . . 2 2 2 . 2 . . . . Terminals 12 | . 2 . 3 . . . 2 1 2 . 2 . . . . Assimilate 3 | . . . . . . . . . 1 . 2 . . . . Botnet 5 | . 1 . 2 . . . 1 . 1 . . . . . . Operators 4 | . 1 . 1 . . . 1 1 . . . . . . . Fabricators . | . . . . . . . . . . . . . . . . Repair Stations . | . . . . . . . . . . . . . . . . Recycling Units 1 | . . . . . . . . 1 . . . . . . . Monitor 1 | . . . . . . . . 1 . . . . . . . Scanalyzers . | . . . . . . . . . . . . . . . . Garrison Access . | . . . . . . . . . . . . . . . . Data Cores Recovered . | . . . . . . . . . . . . . . . . Used . | . . . . . . . . . . . . . . . . Hacking Detections 37 | . 2 . 7 . . . 9 4 6 1 7 . . 1 . Full Trace Events 7 | . . . 1 . . . . 2 2 . 2 . . . . Feedback Events . | . . . . . . . . . . . . . . . . Feedback Blocked . | . . . . . . . . . . . . . . . . Robot Schematics Acquired 1 | . . . . . . . . . 1 . . . . . . Robots Built 12 | . . . . . . . . . 8 . 4 . . . . Authchips . | . . . . . . . . . . . . . . . . Time 335 | . . . . . . . . . 268 . 67 . . . . Total Robot Build Rating 48 | . . . . . . . . . 32 . 16 . . . . Part Schematics Acquired 1 | . . . 1 . . . . . . . . . . . . Parts Built 2 | . . . . . . . . 2 . . . . . . . Authchips . | . . . . . . . . . . . . . . . . Time 109 | . . . . . . . . 109 . . . . . . . Total Part Build Rating 6 | . . . . . . . . 6 . . . . . . . Parts Repaired . | . . . . . . . . . . . . . . . . Time . | . . . . . . . . . . . . . . . . Parts Recycled . | . . . . . . . . . . . . . . . . Recycled Matter . | . . . . . . . . . . . . . . . . Retrieved Matter . | . . . . . . . . . . . . . . . . Retrieved Components 3 | . . . . . . . . 3 . . . . . . . Parts Scanalyzed 1 | . . . 1 . . . . . . . . . . . . Part Schematics Acquired 1 | . . . 1 . . . . . . . . . . . . Parts Damaged . | . . . . . . . . . . . . . . . . Bothacking | -11 -10 -10 -9 -9 -9 -8 -8 -7 -6 -5 -4 -3 -3 -2 -2 ------------ Run | Yrd Mat Min Mat Min Exi Min Mat Fac Fac Fac Fac Res DSF Res Tes Used RIF Installer . | . . . . . . . . . . . . . . . . Robots Hacked . | . . . . . . . . . . . . . . . . Non-combat . | . . . . . . . . . . . . . . . . Combat . | . . . . . . . . . . . . . . . . Robot Hacks Applied . | . . . . . . . . . . . . . . . . Relay Couplers Released 1 | . . . . . . . . . 1 . . . . . . Machine Destruction 1 | . . . . . . . . . 1 . . . . . . Fabnet Peak Effective % . | . . . . . . . . . . . . . . . . Robots Rewired . | . . . . . . . . . . . . . . . . Allies Hacked . | . . . . . . . . . . . . . . . . Hacks Repelled . | . . . . . . . . . . . . . . . . Allies | -11 -10 -10 -9 -9 -9 -8 -8 -7 -6 -5 -4 -3 -3 -2 -2 -------- Run | Yrd Mat Min Mat Min Exi Min Mat Fac Fac Fac Fac Res DSF Res Tes Total Allies 17 | . . 3 . . . . . . 9 . 5 . . . . Largest Group 4 | . . 2 . . . . . . 4 . 2 . . . . Highest-Rated Group 48 | . . 46 . . . . . . 48 . 45 . . . . Highest-Rated Ally 45 | . . 31 . . . . . . 12 . 45 . . . . Total Orders . | . . . . . . . . . . . . . . . . Ally Attacks 67 | . . 14 . . . . . . 48 . 5 . . . . Total Damage 824 | . . 172 . . . . . . 587 . 65 . . . . Kills 8 | . . 1 . . . . . . 7 . . . . . . Allies Corrupted . | . . . . . . . . . . . . . . . . Allies Melted . | . . . . . . . . . . . . . . . . Intel | -11 -10 -10 -9 -9 -9 -8 -8 -7 -6 -5 -4 -3 -3 -2 -2 ------- Run | Yrd Mat Min Mat Min Exi Min Mat Fac Fac Fac Fac Res DSF Res Tes Robot Analysis Total . | . . . . . . . . . . . . . . . . Derelict Logs Recovered . | . . . . . . . . . . . . . . . . Drone Launches . | . . . . . . . . . . . . . . . . Drone Recoveries . | . . . . . . . . . . . . . . . . Exploration | -11 -10 -10 -9 -9 -9 -8 -8 -7 -6 -5 -4 -3 -3 -2 -2 ------------- Run | Yrd Mat Min Mat Min Exi Min Mat Fac Fac Fac Fac Res DSF Res Tes Turns Passed 8802 | 5 1053 381 1284 535 359 159 1827 469 885 71 988 6 63 548 169 Spaces Moved 7418 | 5 576 206 626 321 240 110 923 723 1305 122 1389 14 84 494 280 Core 281 | . . . . . . . . 1 . 87 151 . 26 . 16 Treads 2585 | . 351 206 626 321 240 110 731 . . . . . . . . Legs 230 | 5 225 . . . . . . . . . . . . . . Wheels . | . . . . . . . . . . . . . . . . Hover 1535 | . . . . . . . . . . . 777 . . 494 264 Flight 2787 | . . . . . . . 192 722 1305 35 461 14 58 . . Fastest Speed 27 | 120 120 160 145 145 145 145 34 32 27 40 40 40 40 56 50 Average Speed 87 | 120 144 160 153 145 145 145 134 33 43 47 55 40 43 56 58 Slowest Speed 250 | 120 160 160 160 145 145 145 155 250 120 50 150 40 50 56 250 Overloaded Moves . | . . . . . . . . . . . . . . . . Propulsion Burnouts . | . . . . . . . . . . . . . . . . Robots Hopped 16 | . . . . . . . 1 9 5 . 1 . . . . Cave-ins Triggered . | . . . . . . . . . . . . . . . . Exploration Rate (%) 38 | 2 76 44 54 56 63 25 76 16 34 5 42 1 80 11 36 Regions Visited 15 Branch Regions 5 Pre-discovered Areas 2 | . . 2 . . . . . . . . . . . . . Known Exits Taken 5 | . 1 . . . . . . 1 1 . 1 1 . . . Unknown Exits Taken 9 | 1 . 1 1 1 1 1 1 . . 1 . . . 1 . Scrap Searched 2 | . . . . 2 . . . . . . . . . . . Spaces Dug 22 | . . . . . . . . . . . 22 . . . . Terrain Destroyed 118 | . . . . . . . 22 42 32 . 22 . . . . Melee 22 | . . . . . . . . . . . 22 . . . . Projectile 24 | . . . . . . . 22 2 . . . . . . . AOE 72 | . . . . . . . . 40 32 . . . . . . Terrain Rammed . | . . . . . . . . . . . . . . . . Walls Destroyed . | . . . . . . . . . . . . . . . . Machines Disabled . | . . . . . . . . . . . . . . . . Actions | -11 -10 -10 -9 -9 -9 -8 -8 -7 -6 -5 -4 -3 -3 -2 -2 --------- Run | Yrd Mat Min Mat Min Exi Min Mat Fac Fac Fac Fac Res DSF Res Tes Total 9143 | 4 695 230 848 373 253 109 1356 896 1551 134 1530 13 99 765 287 Wait 1047 | . 20 6 107 40 . . 261 117 173 13 51 . . 256 3 Move 7372 | 4 575 205 625 320 239 109 920 704 1295 121 1386 13 83 493 280 Hop 16 | . . . . . . . 1 9 5 . 1 . . . . Pick Up 131 | . 19 1 17 2 4 . 34 17 11 . 17 . 3 5 1 Fast Attach . | . . . . . . . . . . . . . . . . Attach 108 | . 10 . 13 . 5 . 25 10 14 . 20 . 1 9 1 Detach 12 | . . . 1 . 2 . . 1 2 . 5 . . 1 . Swap 9 | . 3 . 1 . . . 4 1 . . . . . . . Drop 86 | . 13 . 11 . 3 . 32 15 5 . 4 . 1 1 1 Fire 280 | . 55 17 64 11 . . 74 22 30 . 6 . 1 . . Melee 44 | . . . . . . . . . . . 39 . 5 . . Ram 3 | . . . . . . . . . . . 1 . 1 . 1 Kick . | . . . . . . . . . . . . . . . . Crush 15 | . . 1 9 . . . 5 . . . . . . . . Escape Stasis 19 | . . . . . . . . . 15 . . . 4 . . Rewire 1 | . . . . . . . . . 1 . . . . . . Trap . | . . . . . . . . . . . . . . . . Miscellaneous . | . . . . . . . . . . . . . . . . Route ------- -11/Scrapyard -10/Materials (discovered 4 exits: *Mat x2 / *Min x2) -10/Mines -9/Materials (discovered 3 exits: *Mat x2 / [*Min]) -9/Mines (discovered 2 exits: *Mat / *Exi) -9/Exiles -8/Mines -8/Materials (discovered 2 exits: *Fac x2) -7/Factory (discovered 4 exits: *Fac x4) -6/Factory (discovered 6 exits: *Fac x4 / Low x2) -5/Factory -4/Factory (discovered 5 exits: *Res x4 / [*Upp]) -3/Research -3/DSF -2/Research -2/Testing History --------- Turn | Location | Event 1 | -11/Scrapyard | Discovered new exit (range 3) 6 | -11/Scrapyard | Entered Materials 234 | -10/Materials | Central database locked down 318 | -10/Materials | Build established: Mutant 454 | -10/Materials | Discovered new exit (range 5) 454 | -10/Materials | Discovered new exit (range 13) 643 | -10/Materials | Discovered new exit (range 16) 863 | -10/Materials | Lost 3 parts (1p2w) 939 | -10/Materials | Discovered new exit (range 16) 1029 | -10/Materials | Identified exit to Mines 1059 | -10/Materials | Entered Mines 1210 | -10/Mines | Escorted by a lone wolf Derelict 1230 | -10/Mines | Learned location of Storage (-8) 1430 | -10/Mines | Discovered new exit (range 7) 1440 | -10/Mines | Entered Materials 1440 | -9/Materials | Evolved 2 slots: Propulsion x1, Utility x1 2225 | -9/Materials | Discovered new exit (range 4) 2351 | -9/Materials | Central database locked down 2626 | -9/Materials | Discovered new exit (range 15) 2706 | -9/Materials | Discovered new exit (range 13) 2724 | -9/Materials | Entered Mines 2786 | -9/Mines | Assembled infested the area 2791 | -9/Mines | Assisted by a Guerilla fighting off Assembled 3034 | -9/Mines | Discovered new exit (range 7) 3065 | -9/Mines | Received a Rocket Launcher from a helpful Derelict 3229 | -9/Mines | Found a damaged Exp. Sensor Array with a note attached 3253 | -9/Mines | Deemed a non-threat by the Exiles lab entrance 3253 | -9/Mines | Discovered new exit (range 5) 3259 | -9/Mines | Entered Exiles 3296 | -9/Exiles | Met 8R-AWN 3319 | -9/Exiles | Met EX-HEX 3362 | -9/Exiles | Met EX-BIN 3383 | -9/Exiles | Aligned with FarCom system 3384 | -9/Exiles | Given EX-Vault access code 3420 | -9/Exiles | Opened EX-Vault 3429 | -9/Exiles | Found Prototype Energy Cannon 3444 | -9/Exiles | Identified Firepult 3462 | -9/Exiles | Found Prototype Device 3463 | -9/Exiles | Identified Trap Reconfigurator 3499 | -9/Exiles | Warned to stay clear of 0b10 Research branches 3549 | -9/Exiles | Met EX-DEC 3603 | -9/Exiles | Discovered new exit (range 11) 3618 | -9/Exiles | Left Exiles lab with Trap Reconfigurator 3618 | -9/Exiles | Entered Mines 3694 | -8/Mines | Discovered new exit (range 6) 3777 | -8/Mines | Entered Materials 3777 | -8/Materials | Evolved 2 slots: Utility x1, Weapon x1 3884 | -8/Materials | Destroyed 7 combat bots 4266 | -8/Materials | Build established: Scavenger-Skirmisher 4573 | -8/Materials | Discovered new exit (range 10) 5597 | -8/Materials | Discovered new exit (range 16) 5604 | -8/Materials | Entered Factory 5604 | -7/Factory | Evolved 2 slots: Utility x2 5714 | -7/Factory | Fabricated Hacking Suite? 5820 | -7/Factory | Fabricated Hacking Suite (x1) 5925 | -7/Factory | Build established: Hacker-Skirmisher 6021 | -7/Factory | Discovered new exit (range 14) 6064 | -7/Factory | Identified exit to Factory 6073 | -7/Factory | Entered another Factory area 6073 | -6/Factory | Evolved 2 slots: Power x1, Propulsion x1 6097 | -6/Factory | Identified exit to Factory 6097 | -6/Factory | Identified exit to Lower Caves 6216 | -6/Factory | Fabricated S-27 Virus? 6373 | -6/Factory | P-60 Hacker assimilated allied Virus 5a 6639 | -6/Factory | Fabricated S-27 Virus? 6687 | -6/Factory | Lost 4 allies 6697 | -6/Factory | Cargo convoy interrupted 6697 | -6/Factory | Lost 3 parts (1n2w) 6956 | -6/Factory | Core integrity fell below 50% 6958 | -6/Factory | Entered another Factory area 6958 | -5/Factory | Evolved 2 slots: Utility x2 6981 | -5/Factory | Build established: Hacker-Mutant 6986 | -5/Factory | Lost 3 parts (1n1u1w) 7005 | -5/Factory | Discovered new exit (range 15) 7029 | -5/Factory | Entered another Factory area 7029 | -4/Factory | Evolved 2 slots: Utility x2 7306 | -4/Factory | Identified exit to Research 7314 | -4/Factory | Spotted B-86 Titan 7415 | -4/Factory | Lost 4 parts (1p1n2u) 7446 | -4/Factory | Fabricated S-27 Virus? 7557 | -4/Factory | Build established: Hacker-Scout 7832 | -4/Factory | Lost 3 parts (1p2u) 7871 | -4/Factory | Core integrity fell below 50% 7914 | -4/Factory | Lost 3 parts (2n1u) 7996 | -4/Factory | Discovered new exit (range 7) 7998 | -4/Factory | Core integrity fell below 20% 8017 | -4/Factory | Entered Research 8017 | -3/Research | Evolved 2 slots: Utility x2 8023 | -3/Research | Identified exit to DSF 8023 | -3/Research | Entered DSF 8047 | -3/DSF | Additional patrols routed to DSF 8080 | -3/DSF | Discovered new exit (range 11) 8086 | -3/DSF | Entered Research 8086 | -2/Research | Evolved 2 slots: Utility x2 8409 | -2/Research | Build established: Scout 8612 | -2/Research | Discovered new exit (range 19) 8634 | -2/Research | Entered Testing 8635 | -2/Testing | Maximum security lockdown engaged 8643 | -2/Testing | Spotted PL-5T2Q7OHLHN 8803 | -2/Testing | Self-destructed Last Messages --------------- payload. 08769_ G-73 Enforcer unfolds itself. 08769_ B-74 Champion unfolds itself. 08769_ E-15 Imp unfolds itself. 08775_ Adv. Terrain Scanner blown off. 08775_ Imp. Antigrav System blown off. 08775_ E-15 Imp destroyed. 08776_ System corrupted: Heat flow error (+260). 08779_ Acquired Imp. Antigrav System. 08781_ C-30 ARC bursts open, deploying its payload. 08781_ G-73 Enforcer unfolds itself. 08781_ B-74 Champion unfolds itself. 08781_ G-73 Enforcer unfolds itself. 08781_ I-47 Archangel unfolds itself. 08785_ Imp. Antigrav System destroyed. 08792_ Dropped Lgt. Particle Reactor. 08793_ Terminal disabled. 08802_ Slammed into X-87 Electro. 08802_ Destabilizing: Core damaged (-58). Map ----- +----------------------------------------------------+ | ?#####????##########?????????????????????????????? | | ??????????# ##?#??????????????????????????? | | ??????????# #?????????????????????????????? | | ########### #?????????????????????????????? | | # #????"????????????????????????? | | # #?????????????????????????????? | | + #?????????????????????????????? | | #### # ##??"?????????????????????????? | | ## # = #????????? ???????????????????? | | " ## # #???"?????????????????????????? | | " ## ####/#####?????????????????????????????? | | " ## #??# #?????????????????????????????????? | | ## #??# #?????????????????????????????????? | | ## #??# #??????#??????????????????????????? | | ## #??# ###????????????w??????????????????? | | ## #??# T"#???????????????????????????????? | | #### ##?#b""#???????????????????????????????? | | #??# #??#C###???????????????????????????????? | | #??# ##?#!#?#???????????????????????????????? | | ##?# #### #??????#########??????????????????? | | ### "%" #??????# #??????????????????? | | ####gg####???# ]#??????????????????? | | ######+##### #???# ! #??????????????????? | | ##?# + C #???# #??????????????????? | | ? ?# """""" ##g #???###x#####??????????????????? | | ???# """""" ##C####???#?#@#??????????????????????? | | ???# """""" ##C#????????#x#??????????????????????? | | ?? / ## #???????##p##?????????????????????? | | ?!!# """""" ## #########px ####??????????????????? | | !! # """""" ## big g gp #??????????????????? | | !!?#??????"??########### #??????????????????? | | ???????????????????????##### #??????????????????? | | ??????#?????????????????????###??????????????????? | | ?????????????????????????????????????????????????? | | ???????????????????????#?????????????????????????? | | | | | | | | | | | | | | | | | | | | | | | | | | | | | | | +----------------------------------------------------+ Best States ------------- Heat Dissipation 49 Energy Generation 28 Energy Capacity 280 Matter Stores 300 Matter Capacity 300 Sight Range 16 Terrain Scan Range 20 Terrain Scan Density 210 Jamming Range 16 Additional Mass Support 6 Armor Coverage 225 Evasion (%) 74 Melee Accuracy 8 Recoil Reduction 3 Offensive Hacking 40 Defensive Hacking 10 Item Schematics ----------------- Hacking Suite | -9/Materials | Scanalyzed Robot Schematics ------------------ S-27 Virus | -6/Factory | Hacked Fabricated ------------ Hacking Suite | x1 | -7/Factory Hacking Suite | x1 | -7/Factory S-27 Virus | x4 | -6/Factory | Preloaded S-27 Virus | x4 | -6/Factory S-27 Virus | x4 | -4/Factory Alien Tech Used ----------------- None Achievements -------------- Omniscient Cartographer Part-time Excavator Party Time Total Silence War Machine Challenges ------------ None Game ------ Seed UltimatePotentialMallet Manual? 0 Play Time 01:31:21 Cumulative 96.0 hours Start 2024.04.21 @ 22:50:27 End 2024.04.22 @ 01:55:09 Sessions 3 Manual Loads 0 Difficulty Rogue Special Mode None Game No. 82 Rogue 82 Adventurer 0 Explorer 0 Win Type - Total 0 Types 0/0/0/0/0/0/0/0/0 Lore% 44 Gallery% 56 Achievement% 35 Wizard Run 0 Options --------- Layout 1 ASCII 0 Keyboard 0 Movement Numpad Keybinds 0 Fullscreen 1 Font 24/Smallcaps Map View 50x35 Zoom Use 0% Tactical HUD 1 Map Filters NONE Filters NONE Steam 1 RUN: 6b6eecdb-80e9-4666-9d2e-333ff86cf1e0